fUST/lending_fUST_20240611
["ID","MTS","AMOUNT","RATE_DAILY","PERIOD"]
[329005441,1718055050837,-500.0,0.00019452,2]
[329005442,1718055050847,-589.02,0.00019452,2]
[329005443,1718055050857,-500.0,0.00019452,2]
[329005444,1718055050866,-601.64,0.00019452,2]
[329005445,1718055050876,-500.0,0.00019452,2]
[329005446,1718055050886,-647.59209071,0.00019452,2]
[329005447,1718055050895,-636.61,0.00019452,2]
[329005448,1718055050905,-1876.62,0.00019452,2]
[329005449,1718055050915,-504.31,0.00019452,2]
[329005450,1718055050925,-500.0,0.00019452,2]
[329005451,1718055050934,-1095.18,0.00019452,2]
[329005452,1718055050944,-500.0,0.00019452,2]
[329005453,1718055050953,-500.0,0.00019452,2]
[329005454,1718055050963,-500.0,0.00019452,2]
[329005455,1718055050973,-644.79,0.00019452,2]
[329005456,1718055050982,-500.0,0.00019452,2]
[329005457,1718055050991,-500.0,0.00019452,2]
[329005458,1718055051000,-500.0,0.00019452,2]
[329005459,1718055051010,-500.0,0.00019452,2]
[329005460,1718055051019,-500.0,0.00019452,2]
[329005461,1718055051028,-500.0,0.00019452,2]
[329005462,1718055051039,-500.0,0.00019452,2]
[329005463,1718055051048,-506.37,0.00019452,2]
[329005464,1718055051057,-535.93,0.00019452,2]
[329005465,1718055051067,-500.0,0.00019452,2]
[329005466,1718055051076,-500.0,0.00019452,2]
[329005467,1718055051085,-500.0,0.00019452,2]
[329005468,1718055051094,-500.0,0.00019452,2]
[329005469,1718055051105,-500.0,0.00019452,2]
[329005470,1718055051114,-500.0,0.00019452,2]
[329005471,1718055051124,-500.0,0.00019452,2]
[329005472,1718055051133,-2714.02,0.00019452,2]
[329005473,1718055051143,-705.18,0.00019452,2]
[329005474,1718055051152,-500.0,0.00019452,2]
[329005475,1718055051161,-500.0,0.00019452,2]
[329005476,1718055051171,-500.0,0.00019452,2]
[329005477,1718055051181,-500.0,0.00019452,2]
[329005478,1718055051191,-500.0,0.00019452,2]
[329005479,1718055051200,-1100.9,0.00019452,2]
[329005480,1718055051212,-500.0,0.00019452,2]
[329005481,1718055051222,-500.0,0.00019452,2]
[329005482,1718055051231,-806.79,0.00019452,2]
[329005483,1718055051241,-500.0,0.00019452,2]
[329005484,1718055051250,-500.0,0.00019452,2]
[329005485,1718055051260,-500.0,0.00019452,2]
[329005486,1718055051269,-500.0,0.00019452,2]
[329005487,1718055051279,-500.0,0.00019452,2]
[329005488,1718055051289,-500.0,0.00019452,2]
[329005489,1718055051298,-500.0,0.00019452,2]
[329005490,1718055051310,-500.0,0.00019452,2]
[329005491,1718055051320,-500.0,0.00019452,2]
[329005492,1718055051329,-500.0,0.00019452,2]
[329005493,1718055051339,-642.67,0.00019452,2]
[329005494,1718055051349,-500.0,0.00019452,2]
[329005495,1718055051358,-500.0,0.00019452,2]
[329005496,1718055051368,-2013.22,0.00019452,2]
[329005497,1718055051378,-500.0,0.00019452,2]
[329005498,1718055051387,-363.8231379,0.00019452,2]
[329005499,1718055051397,-500.0,0.00019452,2]
[329005500,1718055051407,-1062.18,0.00019452,2]
[329005501,1718055051418,-406.44580019,0.00019489,2]
[329005502,1718055051428,-406.44580019,0.00019626,2]
[329005503,1718055051438,-500.0,0.00019725,2]
[329005504,1718055051448,-688.2,0.00019725,2]
[329005505,1718055051458,-688.2,0.00019725,2]
[329005506,1718055051468,-500.0,0.00019726,2]
[329005507,1718055051478,-316.4045093,0.00019726,2]
[329005508,1718055051492,-500.0,0.00019726,2]
[329005509,1718055051501,-500.0,0.00019726,2]
[329005510,1718055051510,-500.0,0.00019726,2]
[329005511,1718055051521,-239.40668077,0.00019726,2]
[329005512,1718055051531,-500.0,0.00019726,2]
[329005513,1718055051541,-500.0,0.00019726,2]
[329005514,1718055051550,-500.0,0.00019726,2]
[329005515,1718055051561,-500.0,0.00019726,2]
[329005516,1718055051570,-500.0,0.00019726,2]
[329005517,1718055051579,-500.0,0.00019726,2]
[329005518,1718055051589,-500.0,0.00019726,2]
[329005519,1718055051598,-500.0,0.00019726,2]
[329005520,1718055051607,-642.25321705,0.00019726,2]
[329005521,1718055051617,-500.0,0.00019726,2]
[329005522,1718055051626,-500.0,0.00019726,2]
[329005523,1718055051635,-500.0,0.00019726,2]
[329005524,1718055051645,-500.0,0.00019726,2]
[329005525,1718055051654,-500.0,0.00019726,2]
[329005526,1718055051663,-500.0,0.00019726,2]
[329005527,1718055051672,-500.0,0.00019726,2]
[329005528,1718055051682,-500.0,0.00019726,2]
[329005529,1718055051692,-500.0,0.00019726,2]
[329005530,1718055051702,-500.0,0.00019726,2]
[329005531,1718055051711,-500.0,0.00019726,2]
[329005532,1718055051722,-500.0,0.00019726,2]
[329005533,1718055051732,-500.0,0.00019726,2]
[329005534,1718055051742,-500.0,0.00019726,2]
[329005535,1718055051752,-674.08,0.00019726,2]
[329005536,1718055051761,-442.11443357,0.00019726,2]
[329005537,1718055051771,-635.84,0.00019726,2]
[329005538,1718055051781,-500.0,0.00019726,2]
[329005539,1718055051792,-500.0,0.00019726,2]
[329005540,1718055051803,-500.0,0.00019726,2]
[329005541,1718055051812,-500.0,0.00019726,2]
[329005542,1718055051822,-500.0,0.00019726,2]
[329005543,1718055051832,-500.0,0.00019726,2]
[329005544,1718055051842,-500.0,0.00019726,2]
[329005545,1718055051852,-581.76,0.00019726,2]
[329005546,1718055051862,-500.0,0.00019726,2]
[329005547,1718055051871,-500.0,0.00019726,2]
[329005548,1718055051881,-2046.34,0.00019726,2]
[329005549,1718055051891,-500.0,0.00019726,2]
[329005550,1718055051902,-6051.0,0.00019726,2]
[329005551,1718055051911,-589.02,0.00019726,2]
[329005552,1718055051921,-211.12,0.00019726,2]
[329005553,1718055051930,-500.0,0.00019726,2]
[329005554,1718055051940,-1876.62,0.00019726,2]
[329005555,1718055051949,-411.73342454,0.00019726,2]
[329005556,1718055051959,-1095.18,0.00019726,2]
[329005557,1718055051970,-500.0,0.00019726,2]
[329005558,1718055051979,-500.0,0.00019726,2]
[329005559,1718055051989,-644.79,0.00019726,2]
[329005560,1718055051999,-500.0,0.00019726,2]
[329005561,1718055052008,-506.37,0.00019726,2]
[329005562,1718055052018,-535.93,0.00019726,2]
[329005563,1718055052028,-2714.02,0.00019726,2]
[329005564,1718055052038,-705.18,0.00019726,2]
[329005565,1718055052048,-500.0,0.00019726,2]
[329005566,1718055052059,-500.0,0.00019726,2]
[329005567,1718055052068,-500.0,0.00019726,2]
[329005568,1718055052079,-1100.9,0.00019726,2]
[329005569,1718055052089,-500.0,0.00019726,2]
[329005570,1718055052099,-500.0,0.00019726,2]
[329005571,1718055052109,-806.79,0.00019726,2]
[329005572,1718055052119,-500.0,0.00019726,2]
[329005573,1718055052129,-500.0,0.00019726,2]
[329005574,1718055052139,-500.0,0.00019726,2]
[329005575,1718055052151,-500.0,0.00019726,2]
[329005576,1718055052161,-500.0,0.00019726,2]
[329005577,1718055052171,-500.0,0.00019726,2]
[329005578,1718055052180,-500.0,0.00019726,2]
[329005579,1718055052191,-642.67,0.00019726,2]
[329005580,1718055052200,-500.0,0.00019726,2]
[329005581,1718055052213,-2013.22,0.00019726,2]
[329005582,1718055052223,-500.0,0.00019726,2]
[329005583,1718055052233,-1062.18,0.00019726,2]
[329005584,1718055052243,-151.0,0.0001989,3]
[329005585,1718055052254,-20977.56565977,0.000199,2]
[329005586,1718055052265,-500.0,0.00019999,2]
[329005587,1718055052275,-688.2,0.00019999,2]
[329005588,1718055052285,-500.0,0.0002,2]
[329005589,1718055052295,-500.0,0.0002,2]
[329005590,1718055052304,-500.0,0.0002,2]
[329005591,1718055052314,-500.0,0.0002,2]
[329005592,1718055052323,-500.0,0.0002,2]
[329005593,1718055052333,-500.0,0.0002,2]
[329005594,1718055052342,-448.65611892,0.0002,2]
[329005595,1718055052352,-500.0,0.0002,2]
[329005596,1718055052362,-500.0,0.0002,2]
[329005597,1718055052371,-500.0,0.0002,2]
[329005598,1718055052381,-500.0,0.0002,2]
[329005599,1718055052390,-500.0,0.0002,2]
[329005600,1718055052399,-579.65309323,0.0002,2]
[329005601,1718055052409,-500.0,0.0002,2]
[329005602,1718055052418,-500.0,0.0002,2]
[329005603,1718055052428,-500.0,0.0002,2]
[329005604,1718055052438,-500.0,0.0002,2]
[329005605,1718055052448,-500.0,0.0002,2]
[329005606,1718055052457,-500.0,0.0002,2]
[329005607,1718055052467,-674.08,0.0002,2]
[329005608,1718055052478,-500.0,0.0002,2]
[329005609,1718055052493,-500.0,0.0002,2]
[329005610,1718055052502,-500.0,0.0002,2]
[329005611,1718055052512,-300.59,0.0002,2]
[329005612,1718055052522,-500.0,0.0002,2]
[329005613,1718055052533,-581.76,0.0002,2]
[329005614,1718055052544,-500.0,0.0002,2]
[329005615,1718055052554,-500.0,0.0002,2]
[329005616,1718055052564,-2046.34,0.0002,2]
[329005617,1718055052575,-500.0,0.0002,2]
[329005618,1718055052585,-6051.0,0.0002,2]
[329005619,1718055052595,-589.02,0.0002,2]
[329005620,1718055052605,-500.0,0.0002,2]
[329005621,1718055052615,-1876.62,0.0002,2]
[329005622,1718055052625,-1095.18,0.0002,2]
[329005623,1718055052635,-500.0,0.0002,2]
[329005624,1718055052645,-644.79,0.0002,2]
[329005625,1718055052655,-500.0,0.0002,2]
[329005626,1718055052665,-506.37,0.0002,2]
[329005627,1718055052675,-535.93,0.0002,2]
[329005628,1718055052685,-2714.02,0.0002,2]
[329005629,1718055052695,-705.18,0.0002,2]
[329005630,1718055052706,-500.0,0.0002,2]
[329005631,1718055052716,-500.0,0.0002,2]
[329005632,1718055052726,-1100.9,0.0002,2]
[329005633,1718055052735,-500.0,0.0002,2]
[329005634,1718055052744,-500.0,0.0002,2]
[329005635,1718055052754,-806.79,0.0002,2]
[329005636,1718055052764,-500.0,0.0002,2]
[329005637,1718055052774,-500.0,0.0002,2]
[329005638,1718055052783,-500.0,0.0002,2]
[329005639,1718055052793,-500.0,0.0002,2]
[329005640,1718055052803,-500.0,0.0002,2]
[329005641,1718055052812,-500.0,0.0002,2]
[329005642,1718055052822,-500.0,0.0002,2]
[329005643,1718055052831,-642.67,0.0002,2]
[329005644,1718055052841,-500.0,0.0002,2]
[329005645,1718055052851,-2013.22,0.0002,2]
[329005646,1718055052860,-389.92,0.0002,2]
[329005647,1718055052870,-1062.18,0.0002,2]
[329005648,1718055052880,-552.19834558,0.00020262,2]
[329005649,1718055052891,-500.0,0.00020272,2]
[329005650,1718055052900,-688.2,0.00020272,2]
[329005651,1718055052910,-500.0,0.00020273,2]
[329005652,1718055052919,-500.0,0.00020273,2]
[329005653,1718055052929,-500.0,0.00020273,2]
[329005654,1718055052939,-550.2378094,0.00020273,2]
[329005655,1718055052950,-500.0,0.00020273,2]
[329005656,1718055052960,-500.0,0.00020273,2]
[329005657,1718055052970,-500.0,0.00020273,2]
[329005658,1718055052980,-500.0,0.00020273,2]
[329005659,1718055052990,-500.0,0.00020273,2]
[329005660,1718055052999,-500.0,0.00020273,2]
[329005661,1718055053008,-500.0,0.00020273,2]
[329005662,1718055053018,-500.0,0.00020273,2]
[329005663,1718055053027,-674.08,0.00020273,2]
[329005664,1718055053036,-359.05695255,0.00020273,2]
[329005665,1718055053046,-581.76,0.00020273,2]
[329005666,1718055053056,-500.0,0.00020273,2]
[329005667,1718055053066,-500.0,0.00020273,2]
[329005668,1718055053075,-2046.34,0.00020273,2]
[329005669,1718055053085,-500.0,0.00020273,2]
[329005670,1718055053094,-6051.0,0.00020273,2]
[329005671,1718055053104,-589.02,0.00020273,2]
[329005672,1718055053114,-500.0,0.00020273,2]
[329005673,1718055053124,-1876.62,0.00020273,2]
[329005674,1718055053134,-1095.18,0.00020273,2]
[329005675,1718055053144,-500.0,0.00020273,2]
[329005676,1718055053153,-644.79,0.00020273,2]
[329005677,1718055053163,-506.37,0.00020273,2]
[329005678,1718055053173,-535.93,0.00020273,2]
[329005679,1718055053182,-2714.02,0.00020273,2]
[329005680,1718055053192,-705.18,0.00020273,2]
[329005681,1718055053203,-500.0,0.00020273,2]
[329005682,1718055053216,-500.0,0.00020273,2]
[329005683,1718055053226,-1100.9,0.00020273,2]
[329005684,1718055053237,-500.0,0.00020273,2]
[329005685,1718055053247,-500.0,0.00020273,2]
[329005686,1718055053258,-806.79,0.00020273,2]
[329005687,1718055053268,-500.0,0.00020273,2]
[329005688,1718055053278,-203.93474426,0.00020273,2]
[329005689,1718055053289,-500.0,0.00020273,2]
[329005690,1718055053299,-500.0,0.00020273,2]
[329005691,1718055053309,-642.67,0.00020273,2]
[329005692,1718055053319,-500.0,0.00020273,2]
[329005693,1718055053329,-2013.22,0.00020273,2]
[329005694,1718055053339,-1062.18,0.00020273,2]
[329005695,1718055053350,-500.0,0.0002053,2]
[329005696,1718055053361,-688.2,0.00020544,2]
[329005697,1718055053371,-335.64899051,0.00020545,2]
[329005698,1718055053381,-16158.55584083,0.00020545,2]
[329005699,1718055053391,-500.0,0.00020546,2]
[329005700,1718055053402,-688.2,0.00020546,2]
[329005701,1718055053413,-500.0,0.00020547,2]
[329005702,1718055053423,-500.0,0.00020547,2]
[329005703,1718055053433,-500.0,0.00020547,2]
[329005704,1718055053443,-500.0,0.00020547,2]
[329005705,1718055053453,-500.0,0.00020547,2]
[329005706,1718055053464,-500.0,0.00020547,2]
[329005707,1718055053475,-500.0,0.00020547,2]
[329005708,1718055053486,-500.0,0.00020547,2]
[329005709,1718055053497,-500.0,0.00020547,2]
[329005710,1718055053507,-674.08,0.00020547,2]
[329005711,1718055053517,-581.76,0.00020547,2]
[329005712,1718055053528,-500.0,0.00020547,2]
[329005713,1718055053539,-500.0,0.00020547,2]
[329005714,1718055053549,-500.0,0.00020547,2]
[329005715,1718055053560,-2046.34,0.00020547,2]
[329005716,1718055053571,-6051.0,0.00020547,2]
[329005717,1718055053581,-589.02,0.00020547,2]
[329005718,1718055053591,-500.0,0.00020547,2]
[329005719,1718055053601,-1876.62,0.00020547,2]
[329005720,1718055053611,-1095.18,0.00020547,2]
[329005721,1718055053620,-500.0,0.00020547,2]
[329005722,1718055053630,-644.79,0.00020547,2]
[329005723,1718055053640,-506.37,0.00020547,2]
[329005724,1718055053650,-535.93,0.00020547,2]
[329005725,1718055053660,-2714.02,0.00020547,2]
[329005726,1718055053670,-705.18,0.00020547,2]
[329005727,1718055053680,-500.0,0.00020547,2]
[329005728,1718055053690,-500.0,0.00020547,2]
[329005729,1718055053700,-1100.9,0.00020547,2]
[329005730,1718055053710,-500.0,0.00020547,2]
[329005731,1718055053816,-500.0,0.00020547,2]
[329005732,1718055053827,-806.79,0.00020547,2]
[329005733,1718055053837,-500.0,0.00020547,2]
[329005734,1718055053846,-500.0,0.00020547,2]
[329005735,1718055053856,-500.0,0.00020547,2]
[329005736,1718055053866,-642.67,0.00020547,2]
[329005737,1718055053876,-2013.22,0.00020547,2]
[329005738,1718055053886,-390.5,0.0002057,5]
[329005739,1718055053895,-151.0,0.00020579,5]
[329005740,1718055053907,-500.0,0.0002063,2]
[329005741,1718055053917,-500.0,0.0002082,2]
[329005742,1718055053927,-499.85000048,0.00020821,2]
[329005743,1718055053937,-500.0,0.00020821,2]
[329005744,1718055053947,-500.0,0.00020821,2]
[329005745,1718055053957,-500.0,0.00020821,2]
[329005746,1718055053967,-500.0,0.00020821,2]
[329005747,1718055053978,-500.0,0.00020821,2]
[329005748,1718055053987,-500.0,0.00020821,2]
[329005749,1718055053997,-674.08,0.00020821,2]
[329005750,1718055054007,-581.76,0.00020821,2]
[329005751,1718055054017,-500.0,0.00020821,2]
[329005752,1718055054027,-500.0,0.00020821,2]
[329005753,1718055054038,-500.0,0.00020821,2]
[329005754,1718055054048,-2046.34,0.00020821,2]
[329005755,1718055054058,-6051.0,0.00020821,2]
[329005756,1718055054068,-589.02,0.00020821,2]
[329005757,1718055054078,-236.46767737,0.00020821,2]
[329005758,1718055054089,-1876.62,0.00020821,2]
[329005759,1718055054099,-1095.18,0.00020821,2]
[329005760,1718055054109,-500.0,0.00020821,2]
[329005761,1718055054119,-644.79,0.00020821,2]
[329005762,1718055054129,-506.37,0.00020821,2]
[329005763,1718055054139,-535.93,0.00020821,2]
[329005764,1718055054149,-2714.02,0.00020821,2]
[329005765,1718055054159,-705.18,0.00020821,2]
[329005766,1718055054170,-500.0,0.00020821,2]
[329005767,1718055054181,-500.0,0.00020821,2]
[329005768,1718055054191,-1100.9,0.00020821,2]
[329005769,1718055054201,-500.0,0.00020821,2]
[329005770,1718055054212,-500.0,0.00020821,2]
[329005771,1718055054222,-806.79,0.00020821,2]
[329005772,1718055054234,-500.0,0.00020821,2]
[329005773,1718055054244,-500.0,0.00020821,2]
[329005774,1718055054254,-500.0,0.00020821,2]
[329005775,1718055054264,-642.67,0.00020821,2]
[329005776,1718055054274,-2013.22,0.00020821,2]
[329005777,1718055054285,-688.2,0.00020906,2]
[329005778,1718055054295,-621.4604202,0.00020907,2]
[329005779,1718055054306,-497.36,0.00021094,2]
[329005780,1718055054317,-500.0,0.00021095,2]
[329005781,1718055054327,-500.0,0.00021095,2]
[329005782,1718055054337,-500.0,0.00021095,2]
[329005783,1718055054347,-500.0,0.00021095,2]
[329005784,1718055054356,-500.0,0.00021095,2]
[329005785,1718055054366,-500.0,0.00021095,2]
[329005786,1718055054376,-674.08,0.00021095,2]
[329005787,1718055054386,-151.0,0.00021095,2]
[329005788,1718055054396,-151.0,0.00021095,2]
[329005789,1718055054405,-151.0,0.00021095,2]
[329005790,1718055054415,-581.76,0.00021095,2]
[329005791,1718055054425,-151.0,0.00021095,2]
[329005792,1718055054435,-151.0,0.00021095,2]
[329005793,1718055054445,-151.0,0.00021095,2]
[329005794,1718055054455,-151.0,0.00021095,2]
[329005795,1718055054464,-500.0,0.00021095,2]
[329005796,1718055054475,-500.0,0.00021095,2]
[329005797,1718055054486,-500.0,0.00021095,2]
[329005798,1718055054498,-2046.34,0.00021095,2]
[329005799,1718055054508,-6051.0,0.00021095,2]
[329005800,1718055054518,-151.0,0.00021095,2]
[329005801,1718055054529,-589.02,0.00021095,2]
[329005802,1718055054539,-211.845182,0.00021095,2]
[329005803,1718055054548,-1876.62,0.00021095,2]
[329005804,1718055054559,-151.0,0.00021095,2]
[329005805,1718055054570,-151.0,0.00021095,2]
[329005806,1718055054580,-1095.18,0.00021095,2]
[329005807,1718055054590,-151.0,0.00021095,2]
[329005808,1718055054600,-151.0,0.00021095,2]
[329005809,1718055054610,-500.0,0.00021095,2]
[329005810,1718055054621,-644.79,0.00021095,2]
[329005811,1718055054630,-151.0,0.00021095,2]
[329005812,1718055054640,-506.37,0.00021095,2]
[329005813,1718055054650,-535.93,0.00021095,2]
[329005814,1718055054660,-2714.02,0.00021095,2]
[329005815,1718055054670,-705.18,0.00021095,2]
[329005816,1718055054680,-151.0,0.00021095,2]
[329005817,1718055054690,-500.0,0.00021095,2]
[329005818,1718055054701,-500.0,0.00021095,2]
[329005819,1718055054711,-1100.9,0.00021095,2]
[329005820,1718055054722,-500.0,0.00021095,2]
[329005821,1718055054732,-500.0,0.00021095,2]
[329005822,1718055054742,-806.79,0.00021095,2]
[329005823,1718055054752,-500.0,0.00021095,2]
[329005824,1718055054762,-500.0,0.00021095,2]
[329005825,1718055054772,-500.0,0.00021095,2]
[329005826,1718055054782,-642.67,0.00021095,2]
[329005827,1718055054792,-2013.22,0.00021095,2]
[329005828,1718055054802,-151.0,0.00021095,2]
[329005829,1718055054811,-582.295548,0.000211,9]
[329005830,1718055054820,-4239.03743968,0.00021252,2]
[329005831,1718055054830,-151.0,0.00021267,5]
[329005832,1718055054839,-592.0,0.000213,2]
[329005833,1718055054849,-823.0,0.00021313,2]
[329005834,1718055054859,-390.5,0.00021335,5]
[329005835,1718055054870,-688.2,0.00021364,2]
[329005836,1718055054880,-760.02032253,0.00021365,2]
[329005837,1718055054889,-317.32399469,0.00021366,2]
[329005838,1718055054899,-1281.31823399,0.00021366,2]
[329005839,1718055054909,-10539.6485585,0.00021367,2]
[329005840,1718055054920,-202.08616994,0.00021367,2]
[329005841,1718055054930,-2120.15435773,0.00021367,2]
[329005842,1718055054939,-181.91947349,0.00021367,2]
[329005843,1718055054949,-190.40082049,0.00021367,2]
[329005844,1718055054959,-309.9070279,0.00021367,2]
[329005845,1718055054969,-151.0,0.00021367,2]
[329005846,1718055054979,-151.0,0.00021367,2]
[329005847,1718055054988,-151.0,0.00021367,2]
[329005848,1718055054999,-688.2,0.00021367,2]
[329005849,1718055055009,-50201.31855158,0.00021368,2]
[329005864,1718055478845,991.60232279,0.00012856,2]
[329005866,1718055657577,774.62239813,9.999e-05,2]
[329005867,1718055706641,927.49792139,9.999e-05,2]
[329005868,1718056078074,802.17,0.00010959,2]
[329005883,1718056235011,-730.3643329,0.0001512,2]
[329005885,1718056235021,-2121.36699183,0.00015942,2]
[329005887,1718056235031,-300.0,0.00015943,2]
[329005889,1718056235041,-11238.9803729,0.00015944,2]
[329005890,1718056235050,-24890.0,0.00016143,2]
[329005892,1718056235060,-1628.1313824,0.00016247,2]
[329005894,1718056235071,-174.8980671,0.00017142,2]
[329005895,1718056235080,-956.88670955,0.00017142,2]
[329005896,1718056235089,-196.74458259,0.00017142,2]
[329005897,1718056235100,-774.10443301,0.00017142,2]
[329005898,1718056235109,-926.99388113,0.00017142,2]
[329005899,1718056235119,-281.49904927,0.00017142,2]
[329005900,1718056235128,-155.68377304,0.00017142,2]
[329005901,1718056235137,-232.81256118,0.00017144,2]
[329005902,1718056235150,-2054.42351294,0.00017144,2]
[329005927,1718056239668,-2135.78553072,0.00017144,2]
[329005928,1718056239681,-29636.69513866,0.00017144,2]
[329005929,1718056239691,-3471.8082051,0.00017437,2]
[329005930,1718056239701,-420.0,0.00017537,2]
[329005931,1718056239712,-10488.5511856,0.00017898,2]
[329005932,1718056239722,-3471.80820509,0.00017984,2]
[329005933,1718056239733,-1058.866801,0.00018,2]
[329005934,1718056239744,-1354.89851007,0.00018,2]
[329005935,1718056239754,-2763.72024136,0.00018,2]
[329005936,1718056239765,-632.62413596,0.00018,2]
[329005937,1718056239775,-2113.20996993,0.00018141,2]
[329005938,1718056239785,-1690.48986013,0.0001816,2]
[329005939,1718056239796,-3471.80820509,0.00018531,2]
[329005940,1718056239806,-179.92844114,0.000189,2]
[329005941,1718056239816,-190.20871415,0.00018977,2]
[329005942,1718056239826,-3471.80820509,0.00019078,2]
[329005943,1718056239836,-10506.24693024,0.00019078,2]
[329005944,1718056239846,-1982.0265898,0.00019173,2]
[329005945,1718056239856,-249.62568196,0.00019173,2]
[329005946,1718056239866,-240.21086236,0.00019175,2]
[329005947,1718056239876,-175.87024268,0.00019175,2]
[329005948,1718056239887,-596.85124159,0.00019175,2]
[329005949,1718056239899,-515.33926844,0.00019175,2]
[329005950,1718056239911,-216.27278528,0.00019176,2]
[329005951,1718056239921,-272.25840636,0.00019176,2]
[329005952,1718056239931,-278.13343495,0.00019177,2]
[329005953,1718056239942,-5256.86575882,0.00019178,15]
[329005954,1718056239952,-500.0,0.00019178,2]
[329005955,1718056239962,-500.0,0.00019178,2]
[329005956,1718056239972,-500.0,0.00019178,2]
[329005957,1718056239985,-500.0,0.00019178,2]
[329005958,1718056239995,-500.0,0.00019178,2]
[329005959,1718056240005,-500.0,0.00019178,2]
[329005960,1718056240014,-500.0,0.00019178,2]
[329005961,1718056240024,-500.0,0.00019178,2]
[329005962,1718056240033,-500.0,0.00019178,2]
[329005963,1718056240043,-500.0,0.00019178,2]
[329005964,1718056240053,-500.0,0.00019178,2]
[329005965,1718056240063,-500.0,0.00019178,2]
[329005966,1718056240076,-500.0,0.00019178,2]
[329005967,1718056240085,-442.7621031,0.00019178,2]
[329005968,1718056240095,-500.0,0.00019178,2]
[329005969,1718056240105,-500.0,0.00019178,2]
[329005970,1718056240115,-500.0,0.00019178,2]
[329005971,1718056240124,-500.0,0.00019178,2]
[329005972,1718056240135,-500.0,0.00019178,2]
[329005973,1718056240144,-500.0,0.00019178,2]
[329005974,1718056240155,-500.0,0.00019178,2]
[329005975,1718056240166,-393.98501894,0.00019178,2]
[329005976,1718056240175,-155.00465014,0.00019178,2]
[329005977,1718056240184,-508.39621833,0.00019178,2]
[329005978,1718056240195,-500.0,0.00019178,2]
[329005979,1718056240205,-500.0,0.00019178,2]
[329005980,1718056240215,-497.7,0.00019178,2]
[329005981,1718056240225,-500.0,0.00019178,2]
[329005982,1718056240235,-500.0,0.00019178,2]
[329005983,1718056240246,-500.0,0.00019178,2]
[329005984,1718056240256,-500.0,0.00019178,2]
[329005985,1718056240266,-500.0,0.00019178,2]
[329005986,1718056240276,-500.0,0.00019178,2]
[329005987,1718056240286,-500.0,0.00019178,2]
[329005988,1718056240296,-283.59368017,0.00019178,2]
[329005989,1718056240306,-588.20799235,0.00019178,2]
[329005990,1718056240315,-500.0,0.00019178,2]
[329005991,1718056240326,-500.0,0.00019178,2]
[329005992,1718056240336,-500.0,0.00019178,2]
[329005993,1718056240346,-500.0,0.00019178,2]
[329005994,1718056240356,-500.0,0.00019178,2]
[329005995,1718056240366,-500.0,0.00019178,2]
[329005996,1718056240377,-500.0,0.00019178,2]
[329005997,1718056240387,-500.0,0.00019178,2]
[329005998,1718056240398,-500.0,0.00019178,2]